bitfinex-derivatives/quotes_BNBF0:USTF0_20250603
["timestamp","ask_amount","ask_price","bid_price","bid_amount"]
[1748961728525,3.74550645,667.03,665.83,0.47719202]
[1748961728824,3.74550645,667.0,665.84,0.47719202]
[1748961729022,3.74550645,666.99,665.83,0.47719202]
[1748961729222,0.29985906,666.98,665.77,0.47719202]
[1748961729520,3.74550645,666.95,665.71,0.47719202]
[1748961729723,4.045379,666.95,665.71,0.47719202]
[1748961729924,0.29987255,666.95,665.65,0.47719202]
[1748961730221,0.29987255,666.95,665.58,0.47719202]
[1748961730421,0.29987255,666.95,665.57,0.30049431]
[1748961732422,3.74550645,666.91,665.57,0.30049431]
[1748961732625,4.04539698,666.91,665.57,0.30049431]
[1748961732823,0.29989503,666.9,665.57,0.30049431]
[1748961733121,4.04540148,666.9,665.57,0.30049431]
[1748961734125,0.29989503,666.9,665.57,0.30049431]
[1748961736628,0.29989503,666.9,665.58,1.04768657]
[1748961736928,0.29989503,666.9,665.59,1.04768657]
[1748961737131,0.29989503,666.9,665.57,0.30049431]
[1748961737333,0.29989503,666.9,665.58,1.04717617]
[1748961737528,0.29989503,666.9,665.59,1.04717617]
[1748961737732,0.29989503,666.9,665.6,1.04717617]
[1748961737926,0.29989503,666.9,665.57,0.30049431]
[1748961738137,0.29989503,666.9,665.58,1.04713086]
[1748961738438,0.29989503,666.9,665.59,1.04713086]
[1748961738637,0.29989503,666.9,665.6,1.04713086]
[1748961738838,0.29989503,666.9,665.61,1.04713086]
[1748961739138,0.29989503,666.9,665.62,1.04777759]
[1748961739341,0.29989503,666.9,665.57,0.30049431]
[1748961739538,3.74550645,666.84,665.65,0.47719202]
[1748961740942,3.74550645,666.84,665.64,0.47719202]
[1748961741142,3.74550645,666.84,665.65,0.47719202]
[1748961741340,3.74550645,666.83,665.65,0.47719202]
[1748961741843,3.74550645,666.86,665.65,0.47719202]
[1748961742043,3.74550645,666.86,665.66,0.47719202]
[1748961742238,3.74550645,666.86,665.65,0.47719202]
[1748961742640,3.74550645,666.85,665.66,0.47719202]
[1748961744338,3.74550645,666.85,665.67,0.47719202]
[1748961744538,3.74550645,666.84,665.67,0.47719202]
[1748961744938,3.74550645,666.86,665.65,0.47719202]
[1748961745343,3.74550645,666.86,665.66,1.04826261]
[1748961745642,0.29989503,666.9,665.67,1.04826261]
[1748961745841,0.29989503,666.9,665.57,0.30049431]
[1748961746042,0.29989503,666.9,665.58,1.04830107]
[1748961746242,0.29989503,666.9,665.59,1.04830107]
[1748961746445,0.29989503,666.9,665.6,1.04830107]
[1748961746639,0.29989503,666.9,665.61,1.04830107]
[1748961746843,0.29989503,666.9,665.62,1.04830107]
[1748961747040,0.29989503,666.9,665.63,1.04830107]
[1748961747244,0.29989503,666.9,665.64,1.04830107]
[1748961747443,0.29989503,666.9,665.65,1.04828013]
[1748961747643,0.29989503,666.9,665.66,1.04828013]
[1748961747841,0.29989503,666.9,665.67,1.04828013]
[1748961748039,0.29989503,666.9,665.68,1.04826799]
[1748961748238,0.29989503,666.9,665.57,0.30049431]
[1748961748440,0.29989503,666.9,665.58,1.04826873]
[1748961748742,0.29989503,666.9,665.59,1.0482744]
[1748961748942,0.29989503,666.9,665.6,1.0482744]
[1748961749137,0.29989503,666.9,665.61,1.0482744]
[1748961749338,0.29989503,666.9,665.62,1.0482744]
[1748961749538,0.29989503,666.9,665.63,1.0482744]
[1748961749743,0.29989503,666.9,665.64,1.0482744]
[1748961749943,0.29989503,666.9,665.65,1.0482744]
[1748961750145,0.29989503,666.9,665.66,1.0482744]
[1748961750342,0.29989503,666.9,665.67,1.0482744]
[1748961750546,0.29989503,666.9,665.57,0.30049431]
[1748961750748,0.29989503,666.9,665.58,1.04826201]
[1748961750948,0.29989503,666.9,665.59,1.04826201]
[1748961751148,0.29989503,666.9,665.6,1.04826201]
[1748961751349,0.29989503,666.9,665.61,1.04826201]
[1748961751648,0.29989503,666.9,665.62,1.04826201]
[1748961751851,0.29989503,666.9,665.63,1.04826201]
[1748961752046,0.29989503,666.9,665.64,1.04826201]
[1748961752250,0.29989503,666.9,665.65,1.04826201]
[1748961752450,0.29989503,666.9,665.66,1.04826201]
[1748961752646,0.29989503,666.9,665.67,1.04826201]
[1748961752853,0.29989503,666.9,665.57,0.30049431]
[1748961753047,0.29989503,666.9,665.58,1.04815215]
[1748961753251,0.29989503,666.9,665.59,1.04815215]
[1748961753449,0.29989503,666.9,665.6,1.04815215]
[1748961753649,0.29989503,666.9,665.61,1.04815215]
[1748961753850,0.29989503,666.9,665.62,1.04815215]
[1748961754049,0.29989503,666.9,665.63,1.04815215]
[1748961754247,0.29989503,666.9,665.64,1.04815215]
[1748961754449,0.29989503,666.9,665.65,1.04815215]
[1748961754651,0.29989503,666.9,665.66,1.04815215]
[1748961754852,0.29989503,666.9,665.67,1.04815215]
[1748961755151,0.29989503,666.9,665.57,0.30049431]
[1748961755348,0.29989503,666.9,665.58,1.04815234]
[1748961755651,0.29989503,666.9,665.59,1.0481989]
[1748961755849,0.29989503,666.9,665.6,1.0481989]
[1748961756050,0.29989503,666.9,665.61,1.0481989]
[1748961756250,0.29989503,666.9,665.62,1.0481989]
[1748961756448,0.29989503,666.9,665.63,1.0481989]
[1748961756653,0.29989503,666.9,665.64,1.0481989]
[1748961756949,0.29989503,666.9,665.65,1.04813115]
[1748961757252,3.74550645,666.84,665.72,0.47719202]
[1748961757453,3.74550645,666.81,665.73,0.47719202]
[1748961757650,3.74550645,666.81,665.57,0.30049431]
[1748961757651,3.74550645,666.81,665.74,0.47719202]
[1748961757850,3.74550645,666.81,665.63,0.47719202]
[1748961758150,3.74550645,666.83,665.6,0.47719202]
[1748961758351,3.74550645,666.82,665.6,0.47719202]
[1748961759348,3.74550645,666.82,665.61,0.47719202]
[1748961759952,3.74550645,666.81,665.6,0.47719202]
[1748961760647,3.74550645,666.81,665.65,0.47719202]
[1748961760951,3.74550645,666.76,665.65,0.47719202]
[1748961761153,3.74550645,666.76,665.66,0.47719202]
[1748961761352,3.74550645,666.78,665.67,0.47719202]
[1748961762054,3.74550645,666.76,665.65,0.47719202]
[1748961762447,3.74550645,666.76,665.61,0.47719202]
[1748961763050,3.74550645,666.72,665.7,0.47719202]
[1748961763254,3.74550645,666.72,665.69,0.47719202]
[1748961763455,3.74550645,666.72,665.68,0.47719202]
[1748961763756,3.74550645,666.59,665.57,0.30049431]
[1748961763956,3.74550645,666.81,665.57,0.30049431]
[1748961764549,3.74550645,666.82,665.57,0.30049431]
[1748961764951,3.74550645,666.86,665.57,0.30049431]
[1748961765152,0.29991752,666.85,665.57,0.30049431]
[1748961766757,3.74550645,666.72,665.57,0.30049431]
[1748961767858,3.74550645,666.74,665.57,0.30049431]
[1748961768156,3.74550645,666.73,665.57,0.30049431]
[1748961769155,3.74550645,666.72,665.57,0.30049431]
[1748961769756,0.29991752,666.85,665.57,0.30049431]
[1748961778377,3.74550645,666.71,665.57,0.30049431]
[1748961778771,3.74550645,666.48,665.57,0.30049431]
[1748961779374,5.24370903,666.75,665.57,0.30049431]
[1748961779375,3.74550645,666.45,665.57,0.30049431]
[1748961779771,3.74550645,666.46,665.33,0.47719202]
[1748961779975,3.74550645,666.46,665.34,0.47719202]
[1748961780275,3.74550645,666.48,665.31,0.47719202]
[1748961781077,3.74550645,666.49,665.31,0.47719202]
[1748961781473,3.74550645,666.49,665.29,0.47719202]
[1748961781677,3.74550645,666.47,665.28,0.47719202]
[1748961781973,3.74550645,666.47,665.27,0.47719202]
[1748961782178,3.74550645,666.55,665.1,0.47719202]
[1748961782477,3.74550645,666.59,665.11,1.04804216]
[1748961782677,3.74550645,666.59,665.12,2.09216707]
[1748961782877,3.74550645,666.59,665.13,1.34873525]
[1748961783071,3.74550645,666.61,665.14,1.34873073]
[1748961783271,3.74550645,666.61,664.87,1.12067623]
[1748961783272,3.74550645,666.61,665.15,1.34872621]
[1748961783473,3.74550645,666.62,665.16,0.30067953]
[1748961784275,3.74550645,666.61,665.16,0.30067953]
[1748961784674,0.30003,666.6,665.16,0.30067953]
[1748961784879,4.04553645,666.6,665.16,0.30067953]
[1748961785282,0.30003,666.6,665.16,0.30067953]
[1748961790484,0.30003,666.6,665.16,0.77787155]
[1748961790688,0.30003,666.6,665.26,0.47719202]
[1748961791281,0.30003,666.6,665.27,0.47719202]
[1748961791481,0.30003,666.6,665.3,0.47719202]
[1748961792486,0.30003,666.6,665.27,0.47719202]
[1748961792880,0.30003,666.6,665.28,0.47719202]
[1748961793384,0.30003,666.6,665.3,0.47719202]
[1748961793785,0.30003,666.6,665.28,0.47719202]
[1748961794185,0.30003,666.6,665.3,0.47719202]
[1748961794384,0.30003,666.6,665.32,0.47719202]
[1748961794584,0.30003,666.6,665.33,0.47719202]
[1748961795286,0.30003,666.6,665.35,0.47719202]
[1748961796384,0.30003,666.6,665.38,0.47719202]
[1748961796685,0.30003,666.6,665.35,0.47719202]
[1748961797490,0.30003,666.6,665.43,0.47719202]
[1748961797789,0.30003,666.6,665.47,0.47719202]
[1748961798187,0.30003,666.6,665.46,0.47719202]
[1748961799487,0.30003,666.6,665.42,0.47719202]
[1748961800491,0.30003,666.6,665.43,0.47719202]
[1748961801387,0.30003,666.6,665.42,0.47719202]
[1748961802591,0.30003,666.6,665.48,0.47719202]
[1748961803093,0.30003,666.6,665.47,0.47719202]
[1748961803287,0.30003,666.6,665.5,0.47719202]
[1748961803591,0.30003,666.6,665.53,0.47719202]
[1748961804394,0.30003,666.6,665.52,0.47719202]
[1748961806494,0.30003,666.6,665.55,0.47719202]
[1748961806795,0.30003,666.6,665.56,0.47719202]
[1748961807592,0.30003,666.6,665.57,0.47719202]
[1748961807794,0.30003,666.6,665.16,0.77787155]
[1748961807795,0.30003,666.6,665.53,0.47719202]
[1748961808592,0.30003,666.6,665.59,0.47719202]
[1748961808898,0.30003,666.6,665.16,0.30067953]
[1748961809199,0.30003,666.6,665.17,1.0453295]
[1748961809395,0.30003,666.6,665.18,2.09023198]
[1748961809600,0.30003,666.6,665.19,1.34599547]
[1748961809797,0.30003,666.6,665.2,1.04556121]
[1748961809998,0.30003,666.6,665.21,1.04556121]
[1748961810198,0.30003,666.6,665.22,1.79013719]
[1748961810499,0.30003,666.6,665.23,1.04556121]
[1748961810799,0.30003,666.6,665.24,1.04556121]
[1748961811004,0.30003,666.6,665.25,1.04556121]
[1748961811299,0.30003,666.6,665.26,1.04556121]
[1748961811599,0.30003,666.6,665.27,1.79013699]
[1748961811801,0.30003,666.6,665.28,1.04556121]
[1748961812001,0.30003,666.6,665.29,1.79011264]
[1748961812202,0.30003,666.6,665.3,1.04556121]
[1748961812401,0.30003,666.6,665.31,1.04556121]
[1748961812598,0.30003,666.6,665.32,1.34616843]
[1748961812901,0.30003,666.6,665.33,1.04556121]
[1748961813102,0.30003,666.6,665.34,1.04556121]
[1748961813305,0.30003,666.6,665.35,1.78993095]
[1748961813503,0.30003,666.6,665.36,1.34615036]
[1748961813804,0.30003,666.6,665.37,1.04581619]
[1748961814000,0.30003,666.6,665.38,1.04581619]
[1748961814204,0.30003,666.6,665.39,1.04581619]
[1748961814500,0.30003,666.6,665.4,1.04581619]
[1748961814702,0.30003,666.6,665.52,0.47719202]
[1748961815296,0.30003,666.6,665.48,0.47719202]
[1748961816104,0.30003,666.6,665.47,0.47719202]
[1748961816304,0.30003,666.6,665.44,0.47719202]
[1748961816504,0.30003,666.6,665.45,1.78924469]
[1748961816807,3.74550645,667.11,665.46,1.34657883]
[1748961817000,0.29980512,667.1,665.47,1.34657431]
[1748961817199,0.29980512,667.1,665.48,0.30053495]
[1748961817804,4.04531157,667.1,665.48,0.30053495]
[1748961819305,3.74550645,667.05,665.48,0.30053495]
[1748961819506,0.29983209,667.04,665.48,0.30053495]
[1748961819707,4.04533854,667.04,665.48,0.30053495]
[1748961820108,3.74550645,667.03,665.48,0.30053495]
[1748961820305,0.29984108,667.02,665.48,0.30053495]
[1748961820609,3.74550645,666.99,665.48,0.30053495]
[1748961820809,0.29985906,666.98,665.48,0.30053495]
[1748961821610,4.04536551,666.98,665.48,0.30053495]
[1748961822610,0.29985906,666.98,665.48,0.30053495]
[1748961824311,4.04536551,666.98,665.48,0.30053495]
[1748961824811,0.29985906,666.98,665.49,0.47719202]
[1748961825208,3.74550645,666.77,665.52,0.47719202]
[1748961825411,3.74550645,666.77,665.49,0.47719202]
[1748961825607,3.74550645,666.77,665.48,0.30053495]
[1748961825906,0.29985906,666.98,665.48,0.30053495]
[1748961825907,3.74550645,666.88,665.52,0.47719202]
[1748961826111,3.74550645,666.88,665.53,0.47719202]
[1748961826311,3.74550645,666.88,665.54,0.47719202]
[1748961826710,3.74550645,666.89,665.55,0.47719202]
[1748961826907,3.74550645,666.89,665.57,0.47719202]
[1748961827211,3.74550645,666.88,665.56,0.47719202]
[1748961827413,3.74550645,666.88,665.58,0.47719202]
[1748961827612,3.74550645,666.89,665.58,0.47719202]
[1748961827809,3.74550645,666.89,665.59,0.47719202]
[1748961828012,3.74550645,666.9,665.6,0.47719202]
[1748961828214,3.74550645,666.9,665.48,0.30053495]
[1748961828215,3.74550645,666.9,665.61,0.47719202]
[1748961828413,3.74550645,666.92,665.62,0.47719202]
[1748961828912,3.74550645,666.92,665.63,0.47719202]
[1748961829305,3.74550645,666.92,665.48,0.30053495]
[1748961829306,3.74550645,666.93,665.64,0.47719202]
[1748961829813,4.04536551,666.98,665.67,0.47719202]
[1748961830015,4.04536551,666.98,665.48,0.30053495]
[1748961830210,4.04536551,666.98,665.49,1.04655573]
[1748961830408,0.29985906,666.98,665.5,1.82427367]
[1748961830606,0.29985906,666.98,665.51,1.34707713]
[1748961830809,0.29985906,666.98,665.52,1.34707261]
[1748961831109,0.29985906,666.98,665.53,1.3470681]
[1748961831308,0.29985906,666.98,665.54,1.52374775]
[1748961831614,0.29985906,666.98,665.55,2.56912593]
[1748961831909,0.29985906,666.98,665.56,1.34705455]
[1748961832111,0.29985906,666.98,665.57,1.34705004]
[1748961832414,0.29985906,666.98,665.58,1.34704552]
[1748961832611,0.29985906,666.98,665.59,1.34704101]
[1748961832810,0.29985906,666.98,665.57,1.22207619]
[1748961832811,0.29985906,666.98,665.6,1.34703649]
[1748961833014,0.29985906,666.98,665.61,1.34703198]
[1748961833212,0.29985906,666.98,665.62,1.34702747]
[1748961833516,0.29985906,666.98,665.63,0.30046722]
[1748961834312,0.29985906,666.98,665.65,0.47719202]
[1748961834516,0.29985906,666.98,665.64,0.47719202]
[1748961835015,0.29985906,666.98,665.63,0.30046722]
[1748961835411,0.29985906,666.98,665.63,0.77765924]
[1748961836314,0.29985906,666.98,665.65,0.47719202]
[1748961836617,0.29985906,666.98,665.66,0.47719202]
[1748961837418,0.29985906,666.98,665.69,0.47719202]
[1748961837718,0.29985906,666.98,665.8,0.47719202]
[1748961837921,0.29985906,666.98,665.84,0.47719202]
[1748961838313,0.29985906,666.98,665.88,0.47719202]
[1748961838617,0.29985906,666.98,665.77,0.47719202]
[1748961839317,0.29985906,666.98,665.8,0.47719202]
[1748961839513,0.29985906,666.98,665.63,0.30046722]
[1748961839514,0.29985906,666.98,665.82,0.47719202]
[1748961839911,0.29985906,666.98,665.83,0.47719202]
[1748961840115,0.29985906,666.98,665.84,0.47719202]
[1748961840318,0.29985906,666.98,665.85,0.47719202]
[1748961840618,0.29985906,666.98,665.86,0.47719202]
[1748961841515,0.29985906,666.98,665.9,0.47719202]
[1748961841918,0.29985906,666.98,665.63,0.30046722]
[1748961841919,0.29985906,666.98,665.91,0.47719202]
[1748961842112,0.29985906,666.98,665.92,0.47719202]
[1748961842317,0.29985906,666.98,665.94,0.47719202]
[1748961843113,0.29985906,666.98,665.92,0.47719202]
[1748961843319,0.29985906,666.98,665.96,0.47719202]
[1748961843519,0.29985906,666.98,665.97,0.47719202]
[1748961843719,0.29985906,666.98,665.95,0.47719202]
[1748961844218,0.29985906,666.98,665.63,0.30046722]
[1748961844219,0.29985906,666.98,665.94,0.47719202]
[1748961845822,0.29985906,666.98,665.95,0.47719202]
[1748961846220,0.29985906,666.98,666.1,0.47719202]
[1748961846421,0.29985906,666.98,666.12,0.47719202]
[1748961846621,0.29985906,666.98,666.11,0.47719202]
[1748961847125,0.29985906,666.98,666.12,0.47719202]
[1748961847321,0.29985906,666.98,666.13,0.47719202]
[1748961847521,0.29985906,666.98,666.12,0.47719202]
[1748961847825,0.29985906,666.98,666.13,0.47719202]
[1748961848434,0.29985906,666.98,666.12,0.47719202]
[1748961848721,0.29985906,666.98,665.68,0.47719202]
[1748961848722,0.29985906,666.98,666.17,0.47719202]
[1748961849029,0.29985906,666.98,666.24,0.47719202]
[1748961849728,0.29985906,666.98,666.25,0.47719202]
[1748961850121,0.29985906,666.98,666.24,0.47719202]
[1748961850726,0.29985906,666.98,666.23,0.47719202]
[1748961851327,0.29985906,666.98,666.27,0.47719202]
[1748961851621,0.29985906,666.98,665.63,0.30046722]
[1748961851622,0.29985906,666.98,666.07,0.47719202]
[1748961853121,0.29985906,666.98,666.08,0.47719202]
[1748961854023,0.29985906,666.98,666.05,0.47719202]
[1748961854329,0.29985906,666.98,665.63,0.30046722]
[1748961854330,0.29985906,666.98,666.06,0.47719202]
[1748961854924,0.29985906,666.98,666.07,0.47719202]
[1748961855130,0.29985906,666.98,666.08,0.47719202]
[1748961855430,0.29985906,666.98,666.28,0.47719202]
[1748961855926,0.26127205,667.45,666.3,0.47719202]
[1748961856133,0.2996524,667.44,666.3,0.47719202]
[1748961856433,0.2996524,667.44,666.5,0.47719202]
[1748961856823,0.2996524,667.44,666.51,0.47719202]
[1748961857431,0.2996524,667.44,666.53,0.47719202]
[1748961858026,0.2996524,667.44,666.52,0.47719202]
[1748961858432,0.2996524,667.44,666.54,0.47719202]
[1748961858832,0.2996524,667.44,666.57,0.47719202]
[1748961859335,0.2996524,667.44,666.53,0.47719202]
[1748961859835,0.2996524,667.44,666.54,0.47719202]
[1748961860030,0.2996524,667.44,666.56,0.47719202]
[1748961860234,0.2996524,667.44,666.53,0.47719202]
[1748961860737,0.2996524,667.44,666.52,0.47719202]
[1748961860936,0.2996524,667.44,666.5,0.47719202]
[1748961861429,0.2996524,667.44,666.19,0.47719202]
[1748961863433,0.2996524,667.44,666.16,0.47719202]
[1748961863629,0.2996524,667.44,666.18,0.47719202]
[1748961864329,0.2996524,667.44,666.17,0.47719202]
[1748961864533,0.2996524,667.44,666.18,0.47719202]
[1748961864933,0.2996524,667.44,666.2,0.47719202]
[1748961865628,0.2996524,667.44,666.21,0.47719202]
[1748961865929,0.2996524,667.44,666.29,0.47719202]
[1748961866334,0.2996524,667.44,666.28,0.47719202]
[1748961867129,0.2996524,667.44,666.29,0.47719202]
[1748961867329,0.2996524,667.44,666.27,0.47719202]
[1748961867636,0.2996524,667.44,666.28,0.47719202]
[1748961868031,0.2996524,667.44,666.27,0.47719202]
[1748961868232,0.2996524,667.44,666.77,0.47719202]
[1748961868429,0.2996524,667.44,666.27,0.47719202]
[1748961868430,0.2996524,667.44,666.61,0.47719202]
[1748961868631,0.2996524,667.44,666.59,0.47719202]
[1748961869434,0.2996524,667.44,666.18,0.47719202]
[1748961869435,0.2996524,667.44,666.6,0.47719202]
[1748961869636,0.2996524,667.44,666.61,0.47719202]
[1748961870332,0.2996524,667.44,666.64,0.47719202]
[1748961871029,0.2996524,667.44,666.34,0.47719202]
[1748961871435,0.2996524,667.44,666.37,0.47719202]
[1748961871937,0.2996524,667.44,666.4,0.47719202]
[1748961872335,0.2996524,667.44,666.44,0.47719202]
[1748961873332,0.2996524,667.44,666.45,0.47719202]
[1748961874139,0.2996524,667.44,665.76,1.11035794]
[1748961874140,0.2996524,667.44,666.44,0.47719202]
[1748961874941,0.2996524,667.44,666.73,0.47719202]
[1748961875240,0.2996524,667.44,666.72,0.47719202]
[1748961875742,0.2996524,667.44,666.71,0.47719202]
[1748961875941,0.2996524,667.44,666.29,0.47719202]
[1748961875942,0.2996524,667.44,666.81,0.47719202]
[1748961877042,0.2996524,667.44,666.83,0.47719202]
[1748961877647,0.2996524,667.44,666.85,0.47719202]
[1748961877947,0.2996524,667.44,666.84,0.47719202]
[1748961878342,0.2996524,667.44,666.83,0.47719202]
[1748961878544,0.2996524,667.44,666.82,0.47719202]
[1748961879248,0.2996524,667.44,666.75,0.47719202]
[1748961879548,0.2996524,667.44,666.76,0.47719202]
[1748961879949,0.2996524,667.44,666.72,0.47719202]
[1748961880145,0.2996524,667.44,665.69,0.57263043]
[1748961880146,0.2996524,667.44,666.32,0.47719202]
[1748961880353,0.2996524,667.44,666.34,0.47719202]
[1748961880850,0.2996524,667.44,666.33,0.47719202]
[1748961881650,0.2996524,667.44,665.72,0.47719202]
[1748961881651,0.2996524,667.44,666.14,0.47719202]
[1748961881851,0.2996524,667.44,666.13,0.47719202]
[1748961882246,0.2996524,667.44,666.11,0.47719202]
[1748961882451,0.2996524,667.44,666.13,0.47719202]
[1748961882754,0.2996524,667.44,666.15,0.47719202]
[1748961883747,0.2996524,667.44,665.67,1.11002782]
[1748961883748,0.2996524,667.44,666.16,0.47719202]
[1748961884348,0.2996524,667.44,666.15,0.47719202]
[1748961884553,0.2996524,667.44,666.16,0.47719202]
[1748961884849,0.2996524,667.44,666.15,0.47719202]
[1748961885354,0.2996524,667.44,666.19,0.47719202]
[1748961885551,0.2996524,667.44,666.17,0.47719202]
[1748961885952,0.2996524,667.44,666.38,0.47719202]
[1748961886154,0.2996524,667.44,666.39,0.47719202]
[1748961886353,0.2996524,667.44,665.74,1.11002782]
[1748961886354,0.2996524,667.44,666.37,0.47719202]
[1748961886549,0.2996524,667.44,666.41,0.47719202]
[1748961886750,0.2996524,667.44,666.68,0.47719202]
[1748961886954,0.2996524,667.44,666.79,0.47719202]
[1748961887356,0.2996524,667.44,666.84,0.47719202]
[1748961887552,0.2996524,667.44,666.85,0.47719202]
[1748961887757,0.2996524,667.44,666.86,0.47719202]
[1748961888251,0.2996524,667.44,666.63,0.47719202]
[1748961888459,0.2996524,667.44,666.68,0.47719202]
[1748961889254,0.2996524,667.44,666.67,0.47719202]
[1748961889458,0.2996524,667.44,666.71,0.47719202]
[1748961889854,0.2996524,667.44,666.7,0.47719202]
[1748961891155,0.2996524,667.44,665.72,1.47964895]
[1748961891156,0.2996524,667.44,666.75,0.47719202]
[1748961891358,0.2996524,667.44,665.77,1.47964895]
[1748961891359,0.2996524,667.44,666.71,0.47719202]
[1748961892154,0.2996524,667.44,666.81,0.47719202]
[1748961893557,0.2996524,667.44,666.82,0.47719202]
[1748961893757,0.2996524,667.44,666.83,0.47719202]
[1748961894165,0.2996524,667.44,666.75,0.47719202]
[1748961894463,0.2996524,667.44,666.0,1.10808566]
[1748961894464,0.2996524,667.44,666.73,0.47719202]
[1748961894762,0.2996524,667.44,666.77,0.47719202]
[1748961894962,0.2996524,667.44,666.78,0.47719202]
[1748961895163,0.2996524,667.44,666.81,0.47719202]
[1748961895357,0.2996524,667.44,666.25,0.47719202]
[1748961895358,0.2996524,667.44,666.8,0.47719202]
[1748961896357,0.2996524,667.44,666.79,0.47719202]
[1748961896759,0.2996524,667.44,666.8,1.03809172]
[1748961897059,0.2996524,667.44,667.11,0.47719202]
[1748961897260,0.2996524,667.44,666.99,0.47719202]
[1748961897462,0.2996524,667.44,667.02,0.47719202]
[1748961897762,0.2996524,667.44,667.03,0.47719202]
[1748961897965,0.2996524,667.44,667.17,0.47719202]
[1748961898163,0.2996524,667.44,667.22,0.47719202]
[1748961898364,0.2996524,667.44,667.24,0.47719202]
[1748961898560,0.2996524,667.44,667.14,0.47719202]
[1748961898770,0.2996524,667.44,667.24,0.47719202]
[1748961898966,0.26102414,668.23,667.24,0.47719202]
[1748961899160,0.2993071,668.21,667.24,0.47719202]
[1748961899565,0.2993071,668.21,667.25,0.47719202]
[1748961899761,0.2993071,668.21,667.24,0.47719202]
[1748961900061,0.2993071,668.21,667.27,0.47719202]
[1748961901366,0.2993071,668.21,667.26,0.47719202]
[1748961901866,0.2993071,668.21,667.27,0.47719202]
[1748961902066,0.2993071,668.21,667.29,0.47719202]
[1748961903067,0.2993071,668.21,667.19,0.47719202]
[1748961903266,0.2993071,668.21,667.23,0.47719202]
[1748961903467,0.2993071,668.21,667.19,0.47719202]
[1748961903663,0.2993071,668.21,667.24,0.47719202]
[1748961904470,0.2993071,668.21,667.18,0.47719202]
[1748961904667,0.2993071,668.21,667.25,0.47719202]
[1748961905071,0.2993071,668.21,667.33,0.47719202]
[1748961905972,0.2993071,668.21,667.4,0.47719202]
[1748961906173,0.2993071,668.21,667.23,0.47719202]
[1748961906974,0.2993071,668.21,667.24,0.47719202]
[1748961907375,0.2993071,668.21,667.2,0.47719202]
[1748961907769,0.2993071,668.21,667.21,0.47719202]
[1748961908173,0.2993071,668.21,667.2,0.47719202]
[1748961908371,0.2993071,668.21,667.17,0.47719202]
[1748961908575,0.2993071,668.21,667.21,0.47719202]
[1748961908775,0.2993071,668.21,667.2,0.47719202]
[1748961909171,0.2993071,668.21,667.21,0.47719202]
[1748961909373,0.2993071,668.21,667.17,0.47719202]
[1748961909576,0.2993071,668.21,667.2,0.47719202]
[1748961909771,0.2993071,668.21,667.21,0.47719202]
[1748961910073,0.2993071,668.21,667.22,0.47719202]
[1748961910275,0.2993071,668.21,667.19,0.47719202]
[1748961910477,0.2993071,668.21,667.22,0.47719202]
[1748961910677,0.2993071,668.21,667.21,0.47719202]
[1748961911273,0.2993071,668.21,666.63,0.47719202]
[1748961911274,0.2993071,668.21,667.23,0.47719202]
[1748961911472,0.2993071,668.21,667.19,0.47719202]
[1748961911671,0.2993071,668.21,667.3,0.47719202]
[1748961912077,0.2993071,668.21,667.28,0.47719202]
[1748961912476,0.2993071,668.21,667.33,0.47719202]
[1748961912873,0.2993071,668.21,667.44,0.47719202]
[1748961913377,0.2993071,668.21,667.43,0.47719202]
[1748961913574,0.2993071,668.21,666.33,1.10313927]
[1748961913575,0.2993071,668.21,667.46,0.47719202]
[1748961913774,0.2993071,668.21,667.45,0.47719202]
[1748961913976,0.2993071,668.21,667.48,0.47719202]
[1748961914580,0.2993071,668.21,667.5,0.47719202]
[1748961915381,0.2993071,668.21,667.51,0.47719202]
[1748961915581,0.2993071,668.21,667.58,0.47719202]
[1748961915775,0.2993071,668.21,667.59,0.47719202]
[1748961915980,0.2993071,668.21,667.67,0.47719202]
[1748961916378,0.2993071,668.21,667.63,0.47719202]
[1748961916585,0.2993071,668.21,667.49,0.47719202]
[1748961916883,0.2993071,668.21,667.48,0.47719202]
[1748961917082,0.2993071,668.21,667.49,0.47719202]
[1748961917277,0.2993071,668.21,667.48,0.47719202]
[1748961917482,0.2993071,668.21,667.52,0.47719202]
[1748961918278,0.2993071,668.21,667.37,0.47719202]
[1748961918479,0.2993071,668.21,667.39,0.47719202]
[1748961919185,0.2993071,668.21,667.4,0.47719202]
[1748961919483,0.2993071,668.21,666.28,1.10248023]
[1748961919484,0.2993071,668.21,667.39,0.47719202]
[1748961919682,0.2993071,668.21,667.4,0.47719202]
[1748961920078,0.2993071,668.21,667.41,0.47719202]
[1748961920486,0.2993071,668.21,667.44,0.47719202]
[1748961921381,0.2993071,668.21,667.47,0.47719202]
[1748961921681,0.2993071,668.21,667.48,0.47719202]
[1748961921987,0.2993071,668.21,667.47,0.47719202]
[1748961922382,0.2993071,668.21,667.11,0.47719202]
[1748961922585,0.2993071,668.21,667.26,0.47719202]
[1748961922787,0.2993071,668.21,666.31,1.10299641]
[1748961922788,0.2993071,668.21,667.24,0.47719202]
[1748961923187,0.2993071,668.21,667.25,0.47719202]
[1748961923489,0.2993071,668.21,667.29,0.47719202]
[1748961923686,0.2993071,668.21,667.28,0.47719202]
[1748961924487,0.2993071,668.21,667.25,0.47719202]